[Event "*** Titled Tuesday Blitz"]
[Site "Chess.com"]
[Date "2020.11.24"]
[Round "4"]
[White "Geller_Jakov"]
[Black "SARGISMV"]
[Result "0-1"]
[WhiteElo "2634"]
[BlackElo "2510"]
[TimeControl "180+1"]
[EndTime "10:54:51 PST"]
[Termination "SARGISMV won on time"]

1. e4 {[%clk 0:03:00.9]} 1... e6 {[%clk 0:02:59.5]} 2. d4 {[%clk 0:03:00.2]}
2... d5 {[%clk 0:03:00.1]} 3. Nc3 {[%clk 0:03:00.8]} 3... Bb4 {[%clk 0:02:59.7]}
4. e5 {[%clk 0:03:00.8]} 4... c5 {[%clk 0:02:59.4]} 5. Qg4 {[%clk 0:02:57.6]}
5... Ne7 {[%clk 0:02:56.5]} 6. dxc5 {[%clk 0:02:56]} 6... Nbc6 {[%clk 0:02:52]}
7. Nf3 {[%clk 0:02:46.7]} 7... d4 {[%clk 0:02:49.1]} 8. a3 {[%clk 0:02:46.7]}
8... Ba5 {[%clk 0:02:41.9]} 9. b4 {[%clk 0:02:46.9]} 9... Nxb4 {[%clk
0:02:34.2]} 10. axb4 {[%clk 0:02:45.9]} 10... Bxb4 {[%clk 0:02:33.5]} 11. Bd2
{[%clk 0:02:34]} 11... dxc3 {[%clk 0:02:22.8]} 12. Bc1 {[%clk 0:02:06.2]} 12...
Bxc5 {[%clk 0:02:14.1]} 13. Bd3 {[%clk 0:01:45.8]} 13... Bd7 {[%clk 0:01:48.8]}
14. Qxg7 {[%clk 0:01:30]} 14... Rg8 {[%clk 0:01:44.6]} 15. Qxh7 {[%clk
0:01:30.1]} 15... Qb6 {[%clk 0:01:16.7]} 16. Bg5 {[%clk 0:01:20]} 16... O-O-O
{[%clk 0:01:02.1]} 17. O-O {[%clk 0:01:15.1]} 17... Bc6 {[%clk 0:00:58.5]} 18.
h4 {[%clk 0:00:48.7]} 18... Ng6 {[%clk 0:00:32.1]} 19. Bxg6 {[%clk 0:00:19.7]}
19... Bxf3 {[%clk 0:00:28.4]} 20. Bxd8 {[%clk 0:00:09.4]} 20... Qxd8 {[%clk
0:00:22.2]} 21. Qxf7 {[%clk 0:00:09]} 21... Bd5 {[%clk 0:00:18.6]} 22. h5 {[%clk
0:00:08.2]} 22... Rf8 {[%clk 0:00:16.7]} 23. Qg7 {[%clk 0:00:07.1]} 23... Qg5
{[%clk 0:00:16.1]} 24. Qxf8+ {[%clk 0:00:01.6]} 24... Bxf8 {[%clk 0:00:14.9]}
0-1

[Event "*** Titled Tuesday Blitz"]
[Site "Chess.com"]
[Date "2020.11.24"]
[Round "4"]
[White "FearNoEvil12"]
[Black "SHIVACalypso"]
[Result "0-1"]
[WhiteElo "2155"]
[BlackElo "2417"]
[TimeControl "180+1"]
[EndTime "10:54:54 PST"]
[Termination "SHIVACalypso won on time"]

1. e4 {[%clk 0:01:30]} 1... e6 {[%clk 0:03:00.9]} 2. d4 {[%clk 0:01:29]} 2... d5
{[%clk 0:03:00.5]} 3. Nc3 {[%clk 0:01:29.5]} 3... Nf6 {[%clk 0:02:59.9]} 4. Qd3
{[%clk 0:01:29.2]} 4... Bb4 {[%clk 0:02:43.6]} 5. e5 {[%clk 0:01:27.4]} 5... Ne4
{[%clk 0:02:38.9]} 6. a3 {[%clk 0:01:27.6]} 6... Bxc3+ {[%clk 0:02:22.2]} 7.
bxc3 {[%clk 0:01:28.5]} 7... f6 {[%clk 0:02:13.9]} 8. Qe3 {[%clk 0:01:17.8]}
8... fxe5 {[%clk 0:02:08.6]} 9. dxe5 {[%clk 0:01:14.2]} 9... b6 {[%clk
0:02:04.5]} 10. Bd3 {[%clk 0:00:58.3]} 10... Nc5 {[%clk 0:02:00.1]} 11. Qg3
{[%clk 0:00:52.1]} 11... Qe7 {[%clk 0:01:54.9]} 12. Nf3 {[%clk 0:00:50.4]} 12...
Ba6 {[%clk 0:01:47.8]} 13. Bg5 {[%clk 0:00:47.6]} 13... Qf7 {[%clk 0:01:43.4]}
14. Nd4 {[%clk 0:00:44]} 14... O-O {[%clk 0:01:28.2]} 15. O-O {[%clk 0:00:41.8]}
15... Bxd3 {[%clk 0:01:15.6]} 16. cxd3 {[%clk 0:00:40.3]} 16... Qg6 {[%clk
0:01:15.9]} 17. Rad1 {[%clk 0:00:33.6]} 17... h6 {[%clk 0:01:11]} 18. Be7 {[%clk
0:00:32]} 18... Qxg3 {[%clk 0:01:10.3]} 19. hxg3 {[%clk 0:00:30.7]} 19... Re8
{[%clk 0:01:10.2]} 20. Bxc5 {[%clk 0:00:24.8]} 20... bxc5 {[%clk 0:01:11.1]} 21.
Nb3 {[%clk 0:00:20]} 21... Nd7 {[%clk 0:01:09.9]} 22. f4 {[%clk 0:00:18.5]}
22... Rab8 {[%clk 0:01:08.2]} 23. Na5 {[%clk 0:00:17.2]} 23... Rb6 {[%clk
0:01:06.4]} 24. d4 {[%clk 0:00:13.3]} 24... c4 {[%clk 0:01:02.3]} 25. f5 {[%clk
0:00:12.2]} 25... Ra6 {[%clk 0:01:01.1]} 26. fxe6 {[%clk 0:00:09.4]} 26... Rexe6
{[%clk 0:00:58.8]} 27. Nb7 {[%clk 0:00:09.9]} 27... Rxa3 {[%clk 0:00:54.4]} 28.
Rb1 {[%clk 0:00:07]} 28... Rxc3 {[%clk 0:00:49.4]} 29. Nd8 {[%clk 0:00:06.2]}
29... Re8 {[%clk 0:00:47.6]} 30. Nc6 {[%clk 0:00:05.4]} 30... Nb6 {[%clk
0:00:45.3]} 31. Ra1 {[%clk 0:00:03.7]} 31... Rxg3 {[%clk 0:00:41.7]} 32. Rxa7
{[%clk 0:00:02.5]} 32... c3 {[%clk 0:00:32.9]} 33. Rxc7 {[%clk 0:00:03.4]} 33...
Nc4 {[%clk 0:00:30.4]} 34. Rff7 {[%clk 0:00:04.3]} 34... c2 {[%clk 0:00:28.6]}
0-1

[Event "*** Titled Tuesday Blitz"]
[Site "Chess.com"]
[Date "2020.11.24"]
[Round "4"]
[White "monalize"]
[Black "OMGCovid-19"]
[Result "0-1"]
[WhiteElo "2355"]
[BlackElo "1855"]
[TimeControl "180+1"]
[EndTime "10:54:54 PST"]
[Termination "OMGCovid-19 won by resignation"]

1. e4 {[%clk 0:02:57.5]} 1... e6 {[%clk 0:02:59.2]} 2. d4 {[%clk 0:02:56.4]}
2... d5 {[%clk 0:02:37.7]} 3. exd5 {[%clk 0:02:57.1]} 3... exd5 {[%clk
0:02:35.8]} 4. Bd3 {[%clk 0:02:56.6]} 4... Nc6 {[%clk 0:02:34]} 5. c3 {[%clk
0:02:55.7]} 5... Bd6 {[%clk 0:02:32.4]} 6. Qf3 {[%clk 0:02:55.2]} 6... Nf6
{[%clk 0:02:31.5]} 7. Ne2 {[%clk 0:02:53.7]} 7... O-O {[%clk 0:02:29.7]} 8. h3
{[%clk 0:02:53.4]} 8... Ne4 {[%clk 0:02:25.9]} 9. Bf4 {[%clk 0:02:51.7]} 9...
Re8 {[%clk 0:02:19.4]} 10. O-O {[%clk 0:02:46.3]} 10... f5 {[%clk 0:01:55.9]}
11. Nd2 {[%clk 0:02:42.1]} 11... Qf6 {[%clk 0:01:53.4]} 12. Rad1 {[%clk
0:02:38.2]} 12... Bd7 {[%clk 0:01:48.2]} 13. Bxd6 {[%clk 0:02:37.1]} 13... cxd6
{[%clk 0:01:43.5]} 14. Bc2 {[%clk 0:02:27.5]} 14... Rf8 {[%clk 0:01:38.9]} 15.
Bb3 {[%clk 0:02:26.6]} 15... Be6 {[%clk 0:01:33.4]} 16. Nf4 {[%clk 0:02:25.6]}
16... Ne7 {[%clk 0:01:25.7]} 17. Rfe1 {[%clk 0:02:09.2]} 17... g5 {[%clk
0:01:24.5]} 18. Nxe6 {[%clk 0:02:07.9]} 18... Qxe6 {[%clk 0:01:23.9]} 19. Qd3
{[%clk 0:02:07.8]} 19... Qf6 {[%clk 0:01:06.1]} 20. Nf1 {[%clk 0:02:05]} 20...
Kh8 {[%clk 0:01:02.5]} 21. f3 {[%clk 0:02:04.2]} 21... g4 {[%clk 0:00:54.1]} 22.
fxe4 {[%clk 0:02:02.6]} 22... fxe4 {[%clk 0:00:49.1]} 23. Qe3 {[%clk 0:02:01.4]}
23... Nf5 {[%clk 0:00:40.3]} 24. Qf4 {[%clk 0:01:56.3]} 24... gxh3 {[%clk
0:00:34.5]} 25. g4 {[%clk 0:01:55.6]} 25... Qg6 {[%clk 0:00:19.8]} 26. Nh2
{[%clk 0:01:50.6]} 26... Nxd4 {[%clk 0:00:19.3]} 27. Qxf8+ {[%clk 0:01:46]}
27... Rxf8 {[%clk 0:00:18.1]} 28. Rxd4 {[%clk 0:01:46]} 28... Qf6 {[%clk
0:00:16.2]} 29. Rf1 {[%clk 0:01:43.4]} 29... Qe7 {[%clk 0:00:11.4]} 30. Rxf8+
{[%clk 0:01:43.2]} 30... Qxf8 {[%clk 0:00:11.2]} 31. Bxd5 {[%clk 0:01:42.9]}
31... Qf4 {[%clk 0:00:10.5]} 32. Rxe4 {[%clk 0:01:27]} 32... Qg3+ {[%clk
0:00:07.1]} 33. Kf1 {[%clk 0:01:26.4]} 33... Qxh2 {[%clk 0:00:05.5]} 34. Re2
{[%clk 0:01:24.3]} 34... Qf4+ {[%clk 0:00:04.6]} 35. Kg1 {[%clk 0:01:22.7]}
35... Qxg4+ {[%clk 0:00:04.1]} 36. Kf1 {[%clk 0:01:22.6]} 36... Qf4+ {[%clk
0:00:04.1]} 37. Rf2 {[%clk 0:01:22]} 37... Qc1+ {[%clk 0:00:03.8]} 38. Ke2
{[%clk 0:01:20.9]} 38... Qxb2+ {[%clk 0:00:04.1]} 39. Kf3 {[%clk 0:01:21]} 39...
Qxc3+ {[%clk 0:00:04.3]} 40. Kg4 {[%clk 0:01:21.1]} 40... Qg7+ {[%clk 0:00:04]}
41. Kxh3 {[%clk 0:01:20.6]} 41... Qh6+ {[%clk 0:00:03.5]} 42. Kg2 {[%clk
0:01:20.2]} 42... Qg5+ {[%clk 0:00:03.5]} 43. Kf1 {[%clk 0:01:19.8]} 43... Qxd5
{[%clk 0:00:03.7]} 44. Ke2 {[%clk 0:01:19.7]} 44... Qc4+ {[%clk 0:00:03.4]} 45.
Ke3 {[%clk 0:01:19.7]} 45... Qc5+ {[%clk 0:00:03.6]} 46. Kf3 {[%clk 0:01:19.6]}
46... Qxf2+ {[%clk 0:00:04.5]} 47. Kxf2 {[%clk 0:01:19.6]} 47... Kg7 {[%clk
0:00:05.3]} 48. Kg3 {[%clk 0:01:19.9]} 48... Kf6 {[%clk 0:00:06.2]} 49. Kg4
{[%clk 0:01:20.4]} 49... Ke5 {[%clk 0:00:07.1]} 50. Kg5 {[%clk 0:01:20.3]} 50...
Kd4 {[%clk 0:00:08]} 51. Kh6 {[%clk 0:01:20.5]} 51... d5 {[%clk 0:00:08.4]} 52.
Kg5 {[%clk 0:01:21.2]} 52... Kc3 {[%clk 0:00:09.1]} 53. Kf4 {[%clk 0:01:21.6]}
53... d4 {[%clk 0:00:10]} 54. a4 {[%clk 0:01:21.9]} 54... d3 {[%clk 0:00:10.9]}
55. Ke5 {[%clk 0:01:22.3]} 55... Kc2 {[%clk 0:00:11.2]} 56. a5 {[%clk
0:01:22.7]} 56... d2 {[%clk 0:00:11.5]} 57. a6 {[%clk 0:01:23.1]} 57... bxa6
{[%clk 0:00:11.8]} 58. Ke6 {[%clk 0:01:23.3]} 58... d1=Q {[%clk 0:00:11.2]} 0-1

[Event "*** Titled Tuesday Blitz"]
[Site "Chess.com"]
[Date "2020.11.24"]
[Round "4"]
[White "ErikRonka"]
[Black "XDPS"]
[Result "0-1"]
[WhiteElo "2397"]
[BlackElo "2704"]
[TimeControl "180+1"]
[EndTime "10:55:00 PST"]
[Termination "XDPS won by resignation"]

1. e4 {[%clk 0:03:00.9]} 1... c5 {[%clk 0:02:59.5]} 2. Nf3 {[%clk 0:02:59.1]}
2... e6 {[%clk 0:03:00.1]} 3. d4 {[%clk 0:02:59.3]} 3... cxd4 {[%clk 0:03:00.4]}
4. Nxd4 {[%clk 0:03:00]} 4... a6 {[%clk 0:02:59.3]} 5. Nc3 {[%clk 0:02:59.7]}
5... Qc7 {[%clk 0:02:58.8]} 6. Qf3 {[%clk 0:02:59.5]} 6... b5 {[%clk 0:02:58.1]}
7. Bf4 {[%clk 0:02:54.5]} 7... d6 {[%clk 0:02:57.2]} 8. e5 {[%clk 0:02:49.4]}
8... dxe5 {[%clk 0:02:06.7]} 9. Ndxb5 {[%clk 0:02:45.6]} 9... axb5 {[%clk
0:02:05.7]} 10. Bxb5+ {[%clk 0:02:23.8]} 10... Ke7 {[%clk 0:01:34.2]} 11. Qxa8
{[%clk 0:01:25.5]} 11... exf4 {[%clk 0:01:32.8]} 12. O-O {[%clk 0:01:23.8]}
12... Bb7 {[%clk 0:01:17.8]} 13. Qa3+ {[%clk 0:01:19.8]} 13... Qd6 {[%clk
0:01:17.8]} 14. Qa7 {[%clk 0:01:14.4]} 14... Qc7 {[%clk 0:01:15.5]} 15. Nd5+
{[%clk 0:01:04.7]} 15... exd5 {[%clk 0:01:12.8]} 16. Rfe1+ {[%clk 0:01:05.1]}
16... Kf6 {[%clk 0:00:57.4]} 17. Qd4+ {[%clk 0:01:01.4]} 17... Kg6 {[%clk
0:00:55.1]} 18. Bd3+ {[%clk 0:00:55.9]} 18... Kh6 {[%clk 0:00:40.7]} 19. Re3
{[%clk 0:00:31.9]} 19... Nf6 {[%clk 0:00:16]} 20. Rh3+ {[%clk 0:00:29.6]} 20...
Kg5 {[%clk 0:00:16.3]} 21. g3 {[%clk 0:00:13.4]} 21... h5 {[%clk 0:00:16.3]} 22.
gxf4+ {[%clk 0:00:13.2]} 22... Kh6 {[%clk 0:00:12.2]} 23. Kh1 {[%clk 0:00:07.4]}
23... Bc5 {[%clk 0:00:11.6]} 24. Qc3 {[%clk 0:00:06.8]} 24... d4+ {[%clk
0:00:11.8]} 25. f3 {[%clk 0:00:03.8]} 25... dxc3 {[%clk 0:00:11.9]} 26. Rg1
{[%clk 0:00:03.4]} 26... Qxf4 {[%clk 0:00:11.1]} 27. Rgg3 {[%clk 0:00:02.5]} 0-1

[Event "*** Titled Tuesday Blitz"]
[Site "Chess.com"]
[Date "2020.11.24"]
[Round "4"]
[White "mamonika"]
[Black "HackingKid98"]
[Result "0-1"]
[WhiteElo "2106"]
[BlackElo "2325"]
[TimeControl "180+1"]
[EndTime "10:55:00 PST"]
[Termination "HackingKid98 won on time"]

1. e4 {[%clk 0:03:00.9]} 1... c6 {[%clk 0:02:54.5]} 2. d4 {[%clk 0:02:59.7]}
2... d5 {[%clk 0:02:41]} 3. exd5 {[%clk 0:02:59.6]} 3... cxd5 {[%clk 0:02:33.8]}
4. Bd3 {[%clk 0:02:59.1]} 4... Nf6 {[%clk 0:02:29.9]} 5. c3 {[%clk 0:02:53.8]}
5... g6 {[%clk 0:02:28.9]} 6. Bf4 {[%clk 0:02:41.7]} 6... Bg7 {[%clk 0:02:28.7]}
7. Nd2 {[%clk 0:02:40.2]} 7... O-O {[%clk 0:02:27.8]} 8. Ngf3 {[%clk 0:02:40.3]}
8... Bf5 {[%clk 0:02:25.4]} 9. Bxf5 {[%clk 0:02:38.9]} 9... gxf5 {[%clk
0:02:26.3]} 10. O-O {[%clk 0:02:38.7]} 10... Ne4 {[%clk 0:02:26.4]} 11. Ne5
{[%clk 0:02:25]} 11... Nc6 {[%clk 0:02:25]} 12. f3 {[%clk 0:02:04]} 12... Nxd2
{[%clk 0:02:21.6]} 13. Qxd2 {[%clk 0:02:01.7]} 13... Nxe5 {[%clk 0:02:01.3]} 14.
dxe5 {[%clk 0:01:56.4]} 14... e6 {[%clk 0:02:02.2]} 15. Qd4 {[%clk 0:01:44.2]}
15... Qb6 {[%clk 0:01:59.5]} 16. Qxb6 {[%clk 0:01:42.3]} 16... axb6 {[%clk
0:02:00.3]} 17. Bg3 {[%clk 0:01:21]} 17... Rfc8 {[%clk 0:01:57.3]} 18. f4 {[%clk
0:01:20.4]} 18... b5 {[%clk 0:01:54.9]} 19. a3 {[%clk 0:01:13.6]} 19... Bf8
{[%clk 0:01:52.7]} 20. Bf2 {[%clk 0:01:11.4]} 20... Rc4 {[%clk 0:01:50.3]} 21.
Bd4 {[%clk 0:01:06.5]} 21... Be7 {[%clk 0:01:36.1]} 22. Rad1 {[%clk 0:01:02.3]}
22... Kf8 {[%clk 0:01:33.9]} 23. Rf3 {[%clk 0:00:59.1]} 23... Kg7 {[%clk
0:01:14.2]} 24. h3 {[%clk 0:00:53.8]} 24... Rg8 {[%clk 0:01:12.2]} 25. Kf1
{[%clk 0:00:50.4]} 25... Kf8 {[%clk 0:01:10.5]} 26. Rd2 {[%clk 0:00:30.1]} 26...
h5 {[%clk 0:01:08.8]} 27. Bf2 {[%clk 0:00:23.9]} 27... h4 {[%clk 0:01:06.2]} 28.
Bd4 {[%clk 0:00:16.3]} 28... Ke8 {[%clk 0:01:04.8]} 29. Rd1 {[%clk 0:00:09.7]}
29... Kd7 {[%clk 0:01:03.3]} 30. Rd2 {[%clk 0:00:08.4]} 30... Rgc8 {[%clk
0:01:01.4]} 31. Bf2 {[%clk 0:00:07.1]} 31... Re4 {[%clk 0:00:58.1]} 32. g3
{[%clk 0:00:06.1]} 32... hxg3 {[%clk 0:00:55.8]} 33. Bxg3 {[%clk 0:00:06.3]}
33... Rh8 {[%clk 0:00:52.1]} 34. Rh2 {[%clk 0:00:06.1]} 34... Kc6 {[%clk
0:00:48.8]} 35. h4 {[%clk 0:00:06.2]} 35... Rh5 {[%clk 0:00:46.6]} 36. Bf2
{[%clk 0:00:05.1]} 36... Bc5 {[%clk 0:00:44.6]} 37. Bxc5 {[%clk 0:00:01.3]}
37... Kxc5 {[%clk 0:00:45.5]} 0-1

[Event "*** Titled Tuesday Blitz"]
[Site "Chess.com"]
[Date "2020.11.24"]
[Round "4"]
[White "Witik"]
[Black "Ajedrez_con_German"]
[Result "1-0"]
[WhiteElo "2705"]
[BlackElo "2500"]
[TimeControl "180+1"]
[EndTime "10:55:01 PST"]
[Termination "Witik won by resignation"]

1. e4 {[%clk 0:03:00.9]} 1... e6 {[%clk 0:02:56.9]} 2. d4 {[%clk 0:03:00.2]}
2... d5 {[%clk 0:02:55.1]} 3. Nc3 {[%clk 0:02:59]} 3... dxe4 {[%clk 0:02:51]} 4.
Nxe4 {[%clk 0:02:58.6]} 4... Nd7 {[%clk 0:02:45.5]} 5. Nf3 {[%clk 0:02:57.6]}
5... Ngf6 {[%clk 0:02:45.2]} 6. Nxf6+ {[%clk 0:02:55.6]} 6... Nxf6 {[%clk
0:02:41.6]} 7. c3 {[%clk 0:02:52.5]} 7... Be7 {[%clk 0:02:39.7]} 8. Bd3 {[%clk
0:02:44.3]} 8... O-O {[%clk 0:02:37.4]} 9. Qe2 {[%clk 0:02:43.6]} 9... b6 {[%clk
0:02:36.5]} 10. Bg5 {[%clk 0:02:40.4]} 10... Bb7 {[%clk 0:02:34.6]} 11. O-O-O
{[%clk 0:02:39.6]} 11... Bxf3 {[%clk 0:02:16.1]} 12. Qxf3 {[%clk 0:02:14.9]}
12... Qd5 {[%clk 0:02:13]} 13. Qxd5 {[%clk 0:02:11.4]} 13... Nxd5 {[%clk
0:02:12.7]} 14. Bd2 {[%clk 0:02:11]} 14... c5 {[%clk 0:02:07]} 15. dxc5 {[%clk
0:02:08.8]} 15... Bxc5 {[%clk 0:02:05]} 16. Rhf1 {[%clk 0:02:07.9]} 16... Rfd8
{[%clk 0:01:57.4]} 17. Be4 {[%clk 0:02:06.8]} 17... Rac8 {[%clk 0:01:51.3]} 18.
Kb1 {[%clk 0:01:54.2]} 18... Rd7 {[%clk 0:01:40.3]} 19. Bg5 {[%clk 0:01:36.7]}
19... f6 {[%clk 0:01:29.3]} 20. Bc1 {[%clk 0:01:24.7]} 20... Rcd8 {[%clk
0:01:25.8]} 21. Rde1 {[%clk 0:01:24.7]} 21... b5 {[%clk 0:01:08.8]} 22. f4
{[%clk 0:01:22.8]} 22... Nb6 {[%clk 0:00:53.2]} 23. Bc6 {[%clk 0:01:19.3]} 23...
Rd6 {[%clk 0:00:48.2]} 24. Bxb5 {[%clk 0:01:19]} 24... Rb8 {[%clk 0:00:47.2]}
25. Kc2 {[%clk 0:01:03.8]} 25... a6 {[%clk 0:00:39.2]} 26. Be2 {[%clk
0:00:59.4]} 26... Nd5 {[%clk 0:00:37.2]} 27. Bf3 {[%clk 0:00:54.1]} 27... Rc8
{[%clk 0:00:31.8]} 28. Rxe6 {[%clk 0:00:39.6]} 28... Nb4+ {[%clk 0:00:18.9]} 29.
cxb4 {[%clk 0:00:39.4]} 29... Rxe6 {[%clk 0:00:19.3]} 30. Bd5 {[%clk 0:00:25.2]}
30... Bxb4+ {[%clk 0:00:14.1]} 31. Kb1 {[%clk 0:00:24.9]} 31... Rc6 {[%clk
0:00:05.7]} 32. f5 {[%clk 0:00:24.2]} 1-0

[Event "*** Titled Tuesday Blitz"]
[Site "Chess.com"]
[Date "2020.11.24"]
[Round "4"]
[White "mortngabriel"]
[Black "xberli"]
[Result "0-1"]
[WhiteElo "2347"]
[BlackElo "2562"]
[TimeControl "180+1"]
[EndTime "10:55:02 PST"]
[Termination "xberli won by resignation"]

1. e4 {[%clk 0:03:00.9]} 1... e5 {[%clk 0:02:58.3]} 2. Nf3 {[%clk 0:02:58.6]}
2... Nc6 {[%clk 0:02:58.2]} 3. Bb5 {[%clk 0:02:57.1]} 3... Nf6 {[%clk
0:02:56.4]} 4. d3 {[%clk 0:02:55.1]} 4... Bc5 {[%clk 0:02:54.4]} 5. c3 {[%clk
0:02:54.9]} 5... O-O {[%clk 0:02:51]} 6. O-O {[%clk 0:02:54.6]} 6... d6 {[%clk
0:02:48.9]} 7. h3 {[%clk 0:02:52.1]} 7... a6 {[%clk 0:02:48.6]} 8. Ba4 {[%clk
0:02:50.8]} 8... Ba7 {[%clk 0:02:47.6]} 9. Nbd2 {[%clk 0:02:46]} 9... Ne7 {[%clk
0:02:46.9]} 10. Re1 {[%clk 0:02:41.3]} 10... Ng6 {[%clk 0:02:46.2]} 11. Nf1
{[%clk 0:02:40.3]} 11... b5 {[%clk 0:02:41.7]} 12. Bc2 {[%clk 0:02:38.3]} 12...
Bb7 {[%clk 0:02:39.6]} 13. Ng3 {[%clk 0:02:28.2]} 13... Re8 {[%clk 0:02:38.3]}
14. Be3 {[%clk 0:02:21.9]} 14... Bxe3 {[%clk 0:02:34.4]} 15. fxe3 {[%clk
0:02:22.8]} 15... d5 {[%clk 0:02:35.3]} 16. exd5 {[%clk 0:02:10.9]} 16... Nxd5
{[%clk 0:02:31.9]} 17. d4 {[%clk 0:01:55]} 17... Nb6 {[%clk 0:02:24.3]} 18. Bxg6
{[%clk 0:01:48.5]} 18... hxg6 {[%clk 0:02:20.7]} 19. Nxe5 {[%clk 0:01:47]} 19...
Qg5 {[%clk 0:02:07.8]} 20. Qg4 {[%clk 0:01:39]} 20... Qxg4 {[%clk 0:02:03.5]}
21. hxg4 {[%clk 0:01:39.4]} 21... f6 {[%clk 0:01:58]} 22. Nxg6 {[%clk
0:01:36.9]} 22... Nc4 {[%clk 0:01:56.3]} 23. e4 {[%clk 0:01:26]} 23... Nxb2
{[%clk 0:01:55.1]} 24. Re2 {[%clk 0:01:19.1]} 24... Na4 {[%clk 0:01:49.2]} 25.
Rc1 {[%clk 0:01:15.4]} 25... Bc8 {[%clk 0:01:37.6]} 26. g5 {[%clk 0:01:10.8]}
26... fxg5 {[%clk 0:01:31.2]} 27. c4 {[%clk 0:00:58.5]} 27... b4 {[%clk
0:01:20.7]} 28. Ne5 {[%clk 0:00:26.6]} 28... a5 {[%clk 0:01:12.2]} 29. Rf1
{[%clk 0:00:23.1]} 29... c5 {[%clk 0:01:00.8]} 30. Ref2 {[%clk 0:00:18.8]} 30...
cxd4 {[%clk 0:00:56.9]} 31. Nf7 {[%clk 0:00:12.7]} 31... Be6 {[%clk 0:00:48.9]}
32. Nxg5 {[%clk 0:00:11.4]} 32... Bxc4 {[%clk 0:00:46.9]} 33. Rd1 {[%clk
0:00:10.2]} 33... d3 {[%clk 0:00:43.6]} 34. Nf5 {[%clk 0:00:09.8]} 34... Rad8
{[%clk 0:00:38.2]} 35. g4 {[%clk 0:00:04.2]} 35... Nc3 {[%clk 0:00:37.5]} 36.
Rdf1 {[%clk 0:00:04.1]} 36... Nxe4 {[%clk 0:00:35]} 0-1

[Event "*** Titled Tuesday Blitz"]
[Site "Chess.com"]
[Date "2020.11.24"]
[Round "4"]
[White "joppie2"]
[Black "Orest_Vovk"]
[Result "1-0"]
[WhiteElo "2951"]
[BlackElo "2529"]
[TimeControl "180+1"]
[EndTime "10:55:04 PST"]
[Termination "joppie2 won by resignation"]

1. e4 {[%clk 0:03:00.9]} 1... Nc6 {[%clk 0:02:58.3]} 2. Nc3 {[%clk 0:03:00.9]}
2... Nf6 {[%clk 0:02:53]} 3. Nf3 {[%clk 0:03:01.5]} 3... d5 {[%clk 0:02:52.1]}
4. e5 {[%clk 0:03:01.2]} 4... d4 {[%clk 0:02:52.3]} 5. exf6 {[%clk 0:03:01.1]}
5... dxc3 {[%clk 0:02:52.5]} 6. fxg7 {[%clk 0:03:01.7]} 6... cxd2+ {[%clk
0:02:52.7]} 7. Bxd2 {[%clk 0:03:02.3]} 7... Bxg7 {[%clk 0:02:52.4]} 8. c3 {[%clk
0:03:02.6]} 8... Bg4 {[%clk 0:02:51.2]} 9. Be2 {[%clk 0:02:59.8]} 9... Qd5
{[%clk 0:02:47]} 10. Be3 {[%clk 0:02:58.8]} 10... O-O-O {[%clk 0:02:43.3]} 11.
Qxd5 {[%clk 0:02:58.4]} 11... Rxd5 {[%clk 0:02:43.1]} 12. Bc4 {[%clk 0:02:59.3]}
12... Bxf3 {[%clk 0:02:40.4]} 13. gxf3 {[%clk 0:02:59.4]} 13... Rf5 {[%clk
0:02:40.5]} 14. Ke2 {[%clk 0:02:59.2]} 14... e6 {[%clk 0:02:16.2]} 15. Bd3
{[%clk 0:02:56.4]} 15... Rh5 {[%clk 0:02:14.9]} 16. f4 {[%clk 0:02:55.4]} 16...
Bh6 {[%clk 0:02:06.5]} 17. h4 {[%clk 0:02:54]} 17... Ne7 {[%clk 0:02:01.6]} 18.
Bd4 {[%clk 0:02:47.5]} 18... Re8 {[%clk 0:01:46]} 19. Kf3 {[%clk 0:02:25.6]}
19... Nd5 {[%clk 0:01:23.6]} 20. Be4 {[%clk 0:01:55.8]} 20... Nxf4 {[%clk
0:01:19.1]} 21. Be3 {[%clk 0:01:52.5]} 21... f5 {[%clk 0:01:12.8]} 22. Bxf4
{[%clk 0:01:50.4]} 22... fxe4+ {[%clk 0:01:12.4]} 23. Kg4 {[%clk 0:01:51.3]}
23... Bxf4 {[%clk 0:01:05.3]} 24. Kxh5 {[%clk 0:01:51.3]} 24... Rf8 {[%clk
0:00:55.4]} 25. Rhg1 {[%clk 0:01:50.4]} 25... Rf5+ {[%clk 0:00:55]} 26. Kg4
{[%clk 0:01:49.5]} 26... h5+ {[%clk 0:00:55.6]} 27. Kh3 {[%clk 0:01:49.3]} 27...
Bd6 {[%clk 0:00:55.1]} 28. Kg2 {[%clk 0:01:39.8]} 28... Rf4 {[%clk 0:00:52.9]}
29. Rae1 {[%clk 0:01:32]} 29... Rxh4 {[%clk 0:00:49.4]} 30. Rh1 {[%clk
0:01:32.5]} 30... Rg4+ {[%clk 0:00:47.4]} 31. Kf1 {[%clk 0:01:33]} 31... h4
{[%clk 0:00:45.1]} 32. Ke2 {[%clk 0:01:33.6]} 32... Bc5 {[%clk 0:00:40.9]} 33.
Rhg1 {[%clk 0:01:25.3]} 33... Rf4 {[%clk 0:00:40.1]} 34. Rg2 {[%clk 0:01:22.7]}
34... h3 {[%clk 0:00:27.1]} 35. Rh2 {[%clk 0:01:22.3]} 35... Rf3 {[%clk
0:00:27.1]} 36. Reh1 {[%clk 0:01:20.5]} 36... a5 {[%clk 0:00:22.9]} 37. Kd1
{[%clk 0:01:17.1]} 37... Bxf2 {[%clk 0:00:16.9]} 38. Rxh3 {[%clk 0:01:16.6]}
38... Rxh3 {[%clk 0:00:15.3]} 39. Rxh3 {[%clk 0:01:17.5]} 39... Kd7 {[%clk
0:00:13]} 40. Ke2 {[%clk 0:01:17.6]} 40... e3 {[%clk 0:00:12.9]} 41. Kd3 {[%clk
0:01:13.2]} 41... Kd6 {[%clk 0:00:12.9]} 42. a4 {[%clk 0:01:13.5]} 42... b6
{[%clk 0:00:13.2]} 43. Rh5 {[%clk 0:01:13.2]} 43... Kd7 {[%clk 0:00:13.1]} 44.
Re5 {[%clk 0:01:12.4]} 44... Kd6 {[%clk 0:00:13]} 45. Re4 {[%clk 0:01:13]} 45...
Kd5 {[%clk 0:00:13.3]} 46. b4 {[%clk 0:01:10.9]} 46... axb4 {[%clk 0:00:12.6]}
47. cxb4 {[%clk 0:01:11.8]} 47... c5 {[%clk 0:00:12.5]} 48. a5 {[%clk
0:01:11.3]} 48... cxb4 {[%clk 0:00:11.5]} 49. a6 {[%clk 0:01:08.4]} 49... b3
{[%clk 0:00:05.3]} 50. a7 {[%clk 0:01:07.9]} 50... b2 {[%clk 0:00:05.3]} 51.
a8=Q+ {[%clk 0:01:08.8]} 51... Kc5 {[%clk 0:00:05.5]} 52. Qc8+ {[%clk
0:01:06.8]} 52... Kb5 {[%clk 0:00:04.4]} 53. Qc4+ {[%clk 0:01:06.7]} 1-0